Cogmind - Beta 16 @@@ ROGUE MODE // 2025.11.22 @ 00:12:09 Player: ChromeKnight Result: Destroyed by SG-J27(R) with Subdweller Machine Gun Performance ------------- Evolutions (0) 0 Regions Visited (3) 600 Robots Destroyed (15) 75 Value Destroyed (384) 384 Prototype IDs (0) 0 Alien Tech Used (0) 0 Bonus (0) 0 TOTAL SCORE: 1059 Bonus ------- None Cogmind --------- Core Integrity 0/250 Matter 260/300 Energy 250/250 System Corruption 1% Temperature Cool (0) Movement Rolling (120) Ox1 Location -10/Subcaves Parts ------- > --- POWER (1) -------- Ion Engine > --- PROPULSION (2) --- Subdweller Monowheel > --- UTILITY (2) ------ Large Storage Unit > --- WEAPON (2) ------- Subdweller Machine Gun Minigun > --- INVENTORY (15) --- Small Storage Unit Advanced Weight Redist. System Structural Scanner Improved Sensor Array Recoil Stabilizer Reaction Control System System Shield High-powered Tractor Beam High-powered Tractor Beam Peak State ------------ > --- POWER ------------ Ion Engine > --- PROPULSION ------- Aluminum Leg Aluminum Leg > --- UTILITY ---------- Large Storage Unit Light Armor Plating > --- WEAPON ----------- Small Laser Minigun > --- INVENTORY -------- Small Storage Unit Advanced Weight Redist. System Structural Scanner Improved Sensor Array Recoil Stabilizer Reaction Control System System Shield High-powered Tractor Beam High-powered Tractor Beam Light Assault Rifle [Rating: 11] Favorites ----------- Power Ion Engine Engine Ion Engine Power Core Light Nuclear Core Propulsion Aluminum Leg Treads Light Treads Leg Aluminum Leg Wheel Subdweller Monowheel Utility Light Armor Plating Storage Small Storage Unit Protection Light Armor Plating Weapon Light Assault Rifle Energy Gun Small Laser Ballistic Gun Light Assault Rifle Build | -11 -10 -10 -10 ------- Run | Yrd Mat Min Sub Slots Evolved . | . . . . Power . | . . . . Propulsion . | . . . . Utility . | . . . . Weapon . | . . . . Parts Attached 16 | 6 6 1 3 Power 3 | 1 2 . . Engine 2 | 1 1 . . Core 1 | . 1 . . Reactor . | . . . . Propulsion 5 | 2 2 . 1 Treads 2 | 2 . . . Leg 2 | . 2 . . Wheel 1 | . . . 1 Hover . | . . . . Flight . | . . . . Utility 3 | 1 1 1 . Device . | . . . . Storage 2 | 1 . 1 . Processor . | . . . . Hackware . | . . . . Protection 1 | . 1 . . Artifact . | . . . . Weapon 5 | 2 1 . 2 Energy Gun 1 | . 1 . . Energy Cannon . | . . . . Ballistic Gun 4 | 2 . . 2 Ballistic Cannon . | . . . . Launcher . | . . . . Special Weapon . | . . . . Impact Weapon . | . . . . Slashing Weapon . | . . . . Piercing Weapon . | . . . . Special Melee Weapon . | . . . . Unidentified Prototypes . | . . . . Parts Lost 9 | . 4 . 5 Power 2 | . 2 . . Propulsion 3 | . 1 . 2 Utility 1 | . . . 1 Weapon 3 | . 1 . 2 Highest Loss Streak 5 | . 4 . 5 To Critical Strikes . | . . . . Average Backups 3 | . . 3 9 Power . | . . . . Propulsion . | . . . . Utility 3 | . . 2 9 Weapon . | . . . . Tool/Special . | . . . . Unused Backups 8 | . . . 8 Power . | . . . . Propulsion . | . . . . Utility 8 | . . . 8 Weapon . | . . . . Tool/Special . | . . . . Average Slot Usage (%) 93 | . 85 100 93 Engine 13 | . 12 14 14 Treads 4 | . 11 . . Leg 22 | . 15 28 24 Storage 14 | . 14 14 14 Protection 9 | . 2 14 11 Energy Gun 11 | . 8 14 12 Ballistic Gun 15 | . 19 14 14 Peak Build Rating 11 | 6 8 9 11 Average Rating 7 | 4 6 7 8 On Entrance 5 | . 6 7 9 Avg Prop Armor Cover (%) 13 | . 13 . . Naked Turns . | . . . . Heaviest Build 32 | 10 15 30 32 Greatest Support 40 | 40 40 20 20 Greatest Overweight (x) 9 | . 1 1 9 Average Overweight (x) . | . . . 1 Largest Inventory Capacity 15 | 8 8 15 15 Average Capacity 10 | 6 8 9 15 Most Carried 10 | . 1 10 10 Average Carried 3 | . . 3 9 Final Capacity 15 | 8 8 15 15 Final Carried 10 | . 1 10 9 Class Distribution -------------------- 78% | Scavenger-Mutant 21% | Mutant Dominant Class ---------------- Scavenger-Mutant | -10/Materials Scavenger-Mutant | -10/Mines Scavenger-Mutant | -10/Subcaves Resources | -11 -10 -10 -10 ----------- Run | Yrd Mat Min Sub Matter Collected 491 | 214 156 15 106 Remotely . | . . . . Salvage Created 553 | . 412 . 141 Parts 37 | . 32 . 5 Haulers Intercepted 1 | . 1 . . Recyclers Shooed . | . . . . Parts Field Recycled . | . . . . Retrieved Matter . | . . . . Parts Self-Destructed 3 | . . . 3 Prevented . | . . . . Parts Restored . | . . . . Kills | -11 -10 -10 -10 ------- Run | Yrd Mat Min Sub Combat Hostiles Destroyed 12 | . 9 . 3 Guns 12 | . 9 . 3 Classes Destroyed 5 | . 4 . 1 Worker 2 | . 2 . . Hauler 1 | . 1 . . Swarmer 3 | . 3 . . Grunt 6 | . 6 . . Subdweller 3 | . . . 3 Best Kill Streak 4 | . 4 . 1 Combat Bots Only 4 | . 4 . 1 Max Kills in Single Turn 1 | . 1 . 1 Gunslinging . | . . . . Exploded . | . . . . Melee . | . . . . Uniques/NPCs Destroyed . | . . . . Combat | -11 -10 -10 -10 -------- Run | Yrd Mat Min Sub Hostile Shots Fired 103 | . 71 . 32 Missed 25 | . 19 . 6 Hits 78 | . 52 . 26 Projectile 78 | . 52 . 26 Critical Strikes 1 | . . . 1 Damage Taken 1182 | . 654 . 528 Core 253 | . 118 . 135 Absorbed by Shields . | . . . . Core Remaining (%) 100 | 100 . . . Volleys Fired 85 | 1 48 1 35 Largest 2 | 2 2 2 2 Hottest 60 | 40 60 60 60 Shots Fired 137 | 2 85 2 48 Gun 137 | 2 85 2 48 Cannon . | . . . . Launcher . | . . . . Special . | . . . . Kinetic 106 | 2 71 1 32 Thermal 31 | . 14 1 16 Explosive . | . . . . Electromagnetic . | . . . . Robot Hit Streak 8 | 1 8 1 8 Robot Miss Streak 4 | 1 4 1 3 Penetration Max . | . . . . Secondary Targets 1 | . 1 . . Max Gunslinging Chain 1 | . 1 . . Shots Hit Robots 79 | 1 48 1 29 Core Hits 33 | . 25 . 8 Critical Kills . | . . . . Critical Parts Destroyed . | . . . . Critical Strikes . | . . . . Melee Attacks . | . . . . Impact . | . . . . Slashing . | . . . . Piercing . | . . . . Sneak Attacks . | . . . . Combat Hostiles . | . . . . Follow-up Attacks . | . . . . Damage Inflicted 661 | 7 441 15 198 Guns 637 | 7 425 7 198 Cannons . | . . . . Explosions . | . . . . Melee . | . . . . Ramming 24 | . 16 8 . Kinetic 495 | 7 337 7 144 Thermal 142 | . 88 . 54 Explosive . | . . . . Electromagnetic . | . . . . Impact . | . . . . Slashing . | . . . . Piercing . | . . . . Highest Corruption 1 | . 1 1 1 Average Corruption 1 | . 1 1 1 Corruption Purged . | . . . . Corruption Blocked . | . . . . Effects 10 | . 3 4 3 Matter Fused 5 | . 2 1 2 Heat Flow Errors 3 | . 1 1 1 Data Loss (minor) 1 | . . 1 . Alerts 1 | . . 1 . Overload Shots . | . . . . Overflow Damage . | . . . . Projectiles . | . . . . Explosions . | . . . . Melee . | . . . . Knockbacks . | . . . . Impact . | . . . . Kinetic . | . . . . Secondary . | . . . . Self-Inflicted Damage . | . . . . Shots . | . . . . Rammed 2 | . 2 . . Targets Rammed 7 | . 4 3 . Kicked 5 | . 2 3 . Crushed . | . . . . Highest Temperature 268 | . 101 268 222 Average Temperature 54 | . 29 120 113 Received Heat Transfer 637 | . 327 . 310 Siege Activations . | . . . . Martial Activations . | . . . . Shielding Activations . | . . . . Robots Disrupted . | . . . . Combat Hostiles . | . . . . Robots Corrupted . | . . . . Combat Hostiles . | . . . . Parts Fried . | . . . . Impact Corruptions . | . . . . Robots Melted . | . . . . Combat Hostiles . | . . . . Parts Melted 2 | . . . 2 Heat Transferred 325 | . 200 . 125 Parts Sabotaged . | . . . . Parts Stolen . | . . . . Parts Stripped . | . . . . Power Chain Reactions . | . . . . Alert | -11 -10 -10 -10 ------- Run | Yrd Mat Min Sub Maximum Alert Level . | . . . . Low Security (%) 100 | 100 100 100 . Level 1 . | . . . . Level 2 . | . . . . Level 3 . | . . . . Level 4 . | . . . . Level 5 . | . . . . High Security . | . . . . Max Security . | . . . . Peak Influence 100 | . 100 10 . Initial 10 | . . 10 . Average 12 | . 25 . . Influence Increases 271 | . 271 . . Destroy 0b10 Robot/C 180 | . 180 . . Destroy 0b10 Robot/NC 15 | . 15 . . Destroy Leader 42 | . 42 . . Successful Hack 4 | . 4 . . Lose Combat Pursuer 30 | . 30 . . Influence Decreases 271 | . 243 28 . Entered New Map 18 | . . 18 . Time Decay 223 | . 213 10 . Lost Part 30 | . 30 . . Squads Dispatched 3 | . 2 1 . Investigation 2 | . 1 1 . Extermination . | . . . . Reinforcement 1 | . 1 . . Assault . | . . . . Garrison . | . . . . Intercept . | . . . . Searches Triggered . | . . . . Construction Impeded . | . . . . Haulers Reinforced . | . . . . Active Scanning Responses . | . . . . Cargo Convoy Interrupts . | . . . . Stealth | -11 -10 -10 -10 --------- Run | Yrd Mat Min Sub Distress Signals 1 | . 1 . . Communications Jammed . | . . . . Distress Signals . | . . . . Times Spotted 21 | . 17 . 4 Peak Tracking Total 4 | . 4 . 1 Tactical Retreats 1 | . 1 . . Traps | -11 -10 -10 -10 ------- Run | Yrd Mat Min Sub Traps Triggered 3 | . 3 . . Indirectly . | . . . . Trap Hack Attempts . | . . . . Triggered . | . . . . Disarmed . | . . . . Reprogrammed . | . . . . Reused . | . . . . Traps Extracted . | . . . . Installed . | . . . . Triggered . | . . . . Machines | -11 -10 -10 -10 ---------- Run | Yrd Mat Min Sub Machines Disabled . | . . . . Max in Single Turn . | . . . . Machines Repaired . | . . . . Machines Dismantled . | . . . . Machines Sabotaged . | . . . . Overloaded Fab Kills . | . . . . Hacking | -11 -10 -10 -10 --------- Run | Yrd Mat Min Sub Machines Accessed 3 | . 2 1 . Terminals 2 | . 2 . . Fabricators . | . . . . Repair Stations . | . . . . Recycling Units . | . . . . Scanalyzers . | . . . . Garrison Access . | . . . . Total Hacks 6 | . 5 1 . Successful 2 | . 1 1 . Failed 4 | . 4 . . Catastrophic 2 | . 2 . . Database Lockouts . | . . . . Manual 5 | . 5 . . Terminals 5 | . 5 . . Fabricators . | . . . . Repair Stations . | . . . . Recycling Units . | . . . . Scanalyzers . | . . . . Garrison Access . | . . . . Terminal Hacks 1 | . . 1 . Open Door 1 | . . 1 . Fabricator Hacks . | . . . . Repair Station Hacks . | . . . . Recycling Unit Hacks . | . . . . Scanalyzer . | . . . . Garrison Access Hacks . | . . . . Unauthorized Hacks 1 | . 1 . . Terminals 1 | . 1 . . Skim 1 | . 1 . . Fabricators . | . . . . Repair Stations . | . . . . Recycling Units . | . . . . Scanalyzers . | . . . . Garrison Access . | . . . . Data Cores Recovered . | . . . . Used . | . . . . Hacking Detections 1 | . 1 . . Full Trace Events . | . . . . Feedback Events . | . . . . Feedback Blocked . | . . . . Robot Schematics Acquired . | . . . . Robots Built . | . . . . Authchips . | . . . . Time . | . . . . Total Robot Build Rating . | . . . . Part Schematics Acquired . | . . . . Parts Built . | . . . . Authchips . | . . . . Time . | . . . . Total Part Build Rating . | . . . . Part Studies Acquired . | . . . . Parts Repaired . | . . . . Time . | . . . . Parts Recycled . | . . . . Recycled Matter . | . . . . Retrieved Matter . | . . . . Retrieved Components . | . . . . Parts Scanalyzed . | . . . . Part Schematics Acquired . | . . . . Parts Damaged . | . . . . Bothacking | -11 -10 -10 -10 ------------ Run | Yrd Mat Min Sub Used RIF Installer . | . . . . Robots Hacked . | . . . . Non-combat . | . . . . Combat . | . . . . Robot Hacks Applied . | . . . . Relay Couplers Released . | . . . . Fabnet Peak Effective % . | . . . . Robots Rewired . | . . . . Allies Hacked . | . . . . Hacks Repelled . | . . . . Allies | -11 -10 -10 -10 -------- Run | Yrd Mat Min Sub Total Allies . | . . . . Largest Group . | . . . . Highest-Rated Group . | . . . . Highest-Rated Ally . | . . . . Total Orders . | . . . . Ally Attacks . | . . . . Total Damage . | . . . . Kills . | . . . . Allies Corrupted . | . . . . Allies Melted . | . . . . Intel | -11 -10 -10 -10 ------- Run | Yrd Mat Min Sub Active Infowar (turns) . | . . . . Robot Analysis Total . | . . . . Derelict Logs Recovered 2 | . . 2 . Drone Launches . | . . . . Drone Recoveries . | . . . . Exploration | -11 -10 -10 -10 ------------- Run | Yrd Mat Min Sub Turns Passed 1974 | 67 667 687 553 Spaces Moved 874 | 38 395 201 240 Core 6 | 4 . . 2 Treads 151 | 34 117 . . Legs 698 | . 278 201 219 Wheels 19 | . . . 19 Hover . | . . . . Flight . | . . . . Fastest Speed 50 | 50 120 120 120 Average Speed 153 | 148 133 152 187 Slowest Speed 500 | 160 190 190 500 Overloaded Moves . | . . . . Propulsion Burnouts . | . . . . Robots Hopped . | . . . . Potential Cave-ins . | . . . . Cave-ins Triggered . | . . . . Exploration Rate (%) 35 | 4 74 44 18 Regions Visited 3 Branch Regions 2 Pre-discovered Areas 2 | . . 2 . Known Exits Taken . | . . . . Unknown Exits Taken 3 | 1 1 1 . Scrap Searched 1 | . . 1 . Spaces Dug . | . . . . Terrain Destroyed . | . . . . Melee . | . . . . Projectile . | . . . . AOE . | . . . . Terrain Rammed . | . . . . Walls Destroyed . | . . . . Machines Disabled . | . . . . Actions | -11 -10 -10 -10 --------- Run | Yrd Mat Min Sub Total 1384 | 44 460 579 301 Wait 390 | . 5 365 20 Move 871 | 37 394 200 240 Hop . | . . . . Pick Up 12 | . 2 9 1 Fast Attach 12 | 6 5 . 1 Attach 3 | . 1 . 2 Detach . | . . . . Swap 3 | . . 1 2 Drop 1 | . 1 . . Fire 85 | 1 48 1 35 Melee . | . . . . Ram . | . . . . Kick 5 | . 2 3 . Crush 2 | . 2 . . Escape Stasis . | . . . . Rewire . | . . . . Trap . | . . . . Miscellaneous . | . . . . Route ------- -11/Scrapyard -10/Materials (discovered 2 exits: [*Mat] / *Min) -10/Mines -10/Subcaves History --------- Turn | Location | Event 8 | -11/Scrapyard | Discovered new exit (range 15) 68 | -11/Scrapyard | Entered Materials 177 | -10/Materials | Discovered new exit (range 14) 320 | -10/Materials | Build established: Mutant 360 | -10/Materials | Lost 4 parts (2p1n1w) 380 | -10/Materials | Discovered new exit (range 12) 649 | -10/Materials | Build established: Scavenger-Mutant 735 | -10/Materials | Entered Mines 1230 | -10/Mines | Met a Derelict shopkeep closing up shop 1388 | -10/Mines | Learned location of Mines (-9) 1405 | -10/Mines | Discovered new exit (range 11) 1422 | -10/Mines | Entered Subcaves 1423 | -10/Subcaves | Approached by a straggling Scientist 1822 | -10/Subcaves | Core integrity fell below 50% 1912 | -10/Subcaves | Core integrity fell below 20% 1944 | -10/Subcaves | Lost 5 parts (2n1u2w) 1975 | -10/Subcaves | Destroyed by SG-J27(R) with Subdweller Machine Gun Last Messages --------------- 01800_ Subatomizers dissect the Sub. Optics. 01826_ Sub. Laser melted. 01826_ VL-04D(R) destroyed. BX-J4S(c): "I think it's somewhere east of here" 01839_ Acquired 13 matter. 01842_ Subatomizers dissect the Sub. Power Source. BX-J4S(c): "I think it's somewhere southeast of here" 01883_ Lgt. Armor Plating destroyed. 01889_ Aluminum Leg destroyed. 01891_ Lgt. Assault Rifle destroyed. 01899_ Sml. Laser destroyed. 01913_ Aluminum Leg destroyed. 01920_ AS-YWE(R) destroyed. BX-J4S(c): "I think it's somewhere southeast of here" 01932_ Acquired Sub. Monowheel. 01934_ Acquired 33 matter. 01936_ Acquired Sub. Machine Gun. Map ----- +----------------------------------------------------+ | ?????????????????????????????????????????????????? | | ?????????????????????????????????????????????????? | | ?????????????????????????????????????????????????? | | ?????????????????????????????????????????????????? | | ?????????????????????????????????????????????????? | | ?????????????????????????????????????????????????? | | ?????????????????????????????????????????????????? | | ?????????????????????????????????????????????????? | | ?????????????????????????? ????????????????????? | | ????????????????????????? ????????????????????? | | ????????????????????????? ????????????????????? | | ?????????????????????????# ????????????????????? | | ????????????????????????## ????????????????????? | | ????????????????????????? ????????????????????? | | ????????????????????????? ????????????????????? | | ?????????????????????????# #????????????????????? | | ????????????????????????## ????????????????????? | | ????????????????????????# ##???????????????????? | | ???????????????????????## ##??????????????????? | | ??????????????????????## ???????????????????? | | ?????????????????????## #???????????????????? | | ?????????????????????# #???????????????????? | | ????????????????????##[ ##??????????????????? | | ?????????????????#### ?# #??????????????????? | | ????????? # ## #??????????????????? | | ????????? O c @ ##?????????????????? | | ????????? [R ###???????????????? | | ????????? ## ####?#######????? | | ?????????? #####????##### ### # #????? | | ????????????????????????#""""" & #????? | | ????????????????????????#"" "" & #????? | | ????????????????????????#""""## # ## ####????? | | ????????????????????????# """##"" ### # ###????? | | ????????????????????????""" """"" #????? | | ????????????????????????" "" ###???? | | ????????????????????????? ## ## # #???? | | ?????????????????????????# ####### ##???? | | ?????????????????????????# #?????## ##### | | ?????????????????????????## ## ###??????# *# | | ??????????????????????????##?# ##????????# !%! | | ????????????????????????????? #??????????###### # | | ????????????????????????????? ????????????????### | | ?????????????????????????????????????????????????? | | ?????????????????????????????????????????????????? | | ?????????????????????????????????????????????????? | | ?????????????????????????????????????????????????? | | ?????????????????????????????????????????????????? | | ?????????????????????????????????????????????????? | | ?????????????????????????????????????????????????? | | ?????????????????????????????????????????????????? | +----------------------------------------------------+ Best States ------------- Heat Dissipation 25 Energy Generation 14 Energy Capacity 250 Matter Stores 300 Matter Capacity 300 Sight Range 16 Terrain Scan Density 10 Armor Coverage 150 Evasion (%) 55 Recoil Reduction 2 Item Schematics ----------------- None Robot Schematics ------------------ None Fabricated ------------ Nothing Repaired ---------- Nothing Studied --------- None Alien Tech Used ----------------- None Achievements -------------- None Challenges ------------ None Game ------ Seed SlugMobileKinecellerator Manual? 0 Play Time 00:07:16 Cumulative 571.0 hours Start 2025.11.22 @ 00:06:28 End 2025.11.22 @ 00:12:09 Sessions 1 Manual Loads 0 Difficulty Rogue Special Mode None Game No. 907 Rogue 752 Adventurer 148 Explorer 7 Win Type - Total 27 Types 21/1/4/1/0/0/0/0/0/0 Lore% 81 Gallery% 84 Achievement% 69 Wizard Run 0 Options --------- Layout 1 ASCII 0 Keyboard 0 Movement Numpad Keybinds 0 Fullscreen 2 Font 24/Smallcaps Map View 50x40 Zoom Use 0% Tactical HUD 1 Map Filters NONE Filters NONE Steam 1 RUN: c7dcfb18-fe7e-42e1-ac6a-b5b4600f84f5